[Event "NJSK 2023 Jeugd B"]
[Site "Almelo, Netherlands"]
[Date "2023.05.03"]
[Round "4.5"]
[White "Ponomarev, Ivan"]
[Black "Bakija, Alan"]
[Result "0-1"]
[TimeControl "90min/40moves + 30min + 30sec/move"]
[WhiteElo "1788"]
[BlackElo "1999"]

1. c4 {[%clk 01:30:58]} {[%emt 00:00:02]} c6 {[%clk 01:30:55]} {[%emt
00:00:04]} 2. d4 {[%clk 01:31:26]} {[%emt 00:00:03]} d5 {[%clk 01:31:21]}
{[%emt 00:00:04]} 3. Nf3 {[%clk 01:31:52]} {[%emt 00:00:04]} Nf6 {[%clk
01:31:48]} {[%emt 00:00:04]} 4. Nc3 {[%clk 01:32:16]} {[%emt 00:00:06]} dxc4
{[%clk 01:32:02]} {[%emt 00:00:16]} 5. a4 {[%clk 01:32:40]} {[%emt 00:00:06]}
Bf5 {[%clk 01:32:25]} {[%emt 00:00:06]} 6. Ne5 {[%clk 01:31:02]} {[%emt
00:02:09]} Nbd7 {[%clk 01:32:46]} {[%emt 00:00:08]} 7. Nxc4 {[%clk 01:28:27]}
{[%emt 00:03:05]} Qc7 {[%clk 01:33:07]} {[%emt 00:00:09]} 8. f3 {[%clk
01:18:07]} {[%emt 00:10:51]} e5 {[%clk 01:30:19]} {[%emt 00:03:18]} 9. dxe5
{[%clk 01:11:04]} {[%emt 00:07:34]} Nxe5 {[%clk 01:30:04]} {[%emt 00:00:43]} 10.
e4 {[%clk 01:08:00]} {[%emt 00:03:34]} Be6 {[%clk 01:17:25]} {[%emt 00:13:10]}
11. Nxe5 {[%clk 00:55:52]} {[%emt 00:12:38]} Qxe5 {[%clk 01:17:49]} {[%emt
00:00:06]} 12. Be3 {[%clk 00:56:16]} {[%emt 00:00:05]} Rd8 {[%clk 01:06:23]}
{[%emt 00:11:57]} 13. Qc1 {[%clk 00:48:05]} {[%emt 00:08:40]} Bc5 {[%clk
00:55:48]} {[%emt 00:11:05]} 14. f4 {[%clk 00:36:51]} {[%emt 00:11:45]} Bxe3
{[%clk 00:52:54]} {[%emt 00:03:24]} 15. Qxe3 {[%clk 00:37:05]} {[%emt
00:00:16]} Qd4 {[%clk 00:49:34]} {[%emt 00:03:49]} 16. Qxd4 {[%clk 00:36:12]}
{[%emt 00:01:24]} Rxd4 {[%clk 00:49:58]} {[%emt 00:00:06]} 17. Rd1 {[%clk
00:26:00]} {[%emt 00:10:41]} Rb4 {[%clk 00:47:50]} {[%emt 00:02:38]} 18. f5
{[%clk 00:20:30]} {[%emt 00:06:00]} Bc8 {[%clk 00:17:38]} {[%emt 00:30:42]} 19.
Rd2 {[%clk 00:18:36]} {[%emt 00:02:24]} Nxe4 {[%clk 00:12:28]} {[%emt
00:05:40]} 20. Re2 {[%clk 00:18:49]} {[%emt 00:00:16]} Bxf5 {[%clk 00:12:55]}
{[%emt 00:00:04]} 21. g4 {[%clk 00:18:47]} {[%emt 00:01:03]} Bxg4 {[%clk
00:13:41]} {[%emt 00:00:12]} 22. Re3 {[%clk 00:15:59]} {[%emt 00:03:20]} f5
{[%clk 00:09:31]} {[%emt 00:04:39]} 0-1

[Event "NJSK 2023 Jeugd B"]
[Site "Almelo, Netherlands"]
[Date "2023.05.03"]
[Round "4.6"]
[White "Snijders, Take"]
[Black "Blom, Rens"]
[Result "0-1"]
[TimeControl "90min/40moves + 30min + 30sec/move"]
[WhiteElo "1851"]
[BlackElo "1747"]

1. e4 {[%clk 01:30:57]} {[%emt 00:00:02]} d6 {[%clk 01:30:56]} {[%emt
00:00:05]} 2. d4 {[%clk 01:31:22]} {[%emt 00:00:04]} Nf6 {[%clk 01:31:20]}
{[%emt 00:00:07]} 3. Nc3 {[%clk 01:31:45]} {[%emt 00:00:07]} g6 {[%clk
01:31:45]} {[%emt 00:00:05]} 4. Bg5 {[%clk 01:32:08]} {[%emt 00:00:06]} Bg7
{[%clk 01:31:52]} {[%emt 00:00:24]} 5. Qd2 {[%clk 01:32:31]} {[%emt 00:00:07]}
h6 {[%clk 01:31:57]} {[%emt 00:00:24]} 6. Bh4 {[%clk 01:32:54]} {[%emt
00:00:07]} O-O {[%clk 01:32:08]} {[%emt 00:00:20]} 7. O-O-O {[%clk 01:32:06]}
{[%emt 00:01:18]} c6 {[%clk 01:31:31]} {[%emt 00:01:07]} 8. f4 {[%clk
01:30:51]} {[%emt 00:01:44]} b5 {[%clk 01:30:14]} {[%emt 00:01:48]} 9. e5
{[%clk 01:29:23]} {[%emt 00:01:58]} b4 {[%clk 01:28:23]} {[%emt 00:02:21]} 10.
exf6 {[%clk 01:29:42]} {[%emt 00:00:11]} bxc3 {[%clk 01:28:43]} {[%emt
00:00:10]} 11. Qxc3 {[%clk 01:30:07]} {[%emt 00:00:05]} exf6 {[%clk 01:28:02]}
{[%emt 00:01:11]} 12. Bd3 {[%clk 01:25:19]} {[%emt 00:05:17]} g5 {[%clk
01:20:22]} {[%emt 00:08:10]} 13. Bg3 {[%clk 01:21:31]} {[%emt 00:04:19]} f5
{[%clk 01:07:54]} {[%emt 00:12:58]} 14. Ne2 {[%clk 01:12:51]} {[%emt 00:09:10]}
c5 {[%clk 00:57:37]} {[%emt 00:10:48]} 15. Qb3 {[%clk 01:03:52]} {[%emt
00:09:29]} Nc6 {[%clk 00:45:48]} {[%emt 00:12:19]} 16. Qd5 {[%clk 00:51:21]}
{[%emt 00:13:01]} Qb6 {[%clk 00:31:55]} {[%emt 00:14:23]} 17. fxg5 {[%clk
00:45:51]} {[%emt 00:05:59]} Rb8 {[%clk 00:25:21]} {[%emt 00:07:05]} 18. Qb3
{[%clk 00:42:24]} {[%emt 00:03:57]} Qd8 {[%clk 00:23:15]} {[%emt 00:02:36]} 19.
Qd5 {[%clk 00:37:03]} {[%emt 00:05:51]} Qb6 {[%clk 00:16:26]} {[%emt 00:07:19]}
20. b3 {[%clk 00:29:38]} {[%emt 00:07:55]} Rd8 {[%clk 00:15:15]} {[%emt
00:01:41]} 21. gxh6 {[%clk 00:21:13]} {[%emt 00:08:55]} Be6 {[%clk 00:15:21]}
{[%emt 00:00:24]} 22. h7+ {[%clk 00:19:45]} {[%emt 00:01:57]} Kh8 {[%clk
00:15:26]} {[%emt 00:00:25]} 23. Qf3 {[%clk 00:19:49]} {[%emt 00:00:26]} Nxd4
{[%clk 00:14:29]} {[%emt 00:01:27]} 24. Nxd4 {[%clk 00:19:10]} {[%emt
00:01:09]} Bxd4 {[%clk 00:14:58]} {[%emt 00:00:01]} 25. Bxf5 {[%clk 00:18:46]}
{[%emt 00:00:54]} Qb4 {[%clk 00:13:50]} {[%emt 00:01:39]} 26. Kb1 {[%clk
00:14:20]} {[%emt 00:04:56]} Bxf5 {[%clk 00:11:13]} {[%emt 00:03:07]} 27. Qxf5
{[%clk 00:14:25]} {[%emt 00:00:24]} Qc3 {[%clk 00:10:27]} {[%emt 00:01:16]} 28.
Rxd4 {[%clk 00:14:35]} {[%emt 00:00:20]} Qxd4 {[%clk 00:10:56]} {[%emt
00:00:01]} 29. c3 {[%clk 00:13:34]} {[%emt 00:01:31]} Qxc3 {[%clk 00:09:02]}
{[%emt 00:02:25]} 30. Bh4 {[%clk 00:13:52]} {[%emt 00:00:11]} Rxb3+ {[%clk
00:09:25]} {[%emt 00:00:08]} 31. axb3 {[%clk 00:14:13]} {[%emt 00:00:09]} Qxb3+
{[%clk 00:09:50]} {[%emt 00:00:05]} 32. Kc1 {[%clk 00:14:20]} {[%emt 00:00:23]}
Qc4+ {[%clk 00:09:45]} {[%emt 00:00:35]} 33. Kd2 {[%clk 00:13:02]} {[%emt
00:01:48]} Qd4+ {[%clk 00:09:46]} {[%emt 00:00:29]} 34. Kc2 {[%clk 00:13:08]}
{[%emt 00:00:23]} Qxh4 {[%clk 00:09:59]} {[%emt 00:00:17]} 35. Qxf7 {[%clk
00:13:24]} {[%emt 00:00:14]} Rb8 {[%clk 00:07:07]} {[%emt 00:03:23]} 36. Rd1
{[%clk 00:06:43]} {[%emt 00:07:11]} Qe4+ {[%clk 00:04:59]} {[%emt 00:02:37]} 37.
Kc3 {[%clk 00:06:02]} {[%emt 00:01:12]} Qe3+ {[%clk 00:03:56]} {[%emt
00:01:33]} 38. Kc2 {[%clk 00:05:02]} {[%emt 00:01:30]} Qe2+ {[%clk 00:03:33]}
{[%emt 00:00:52]} 39. Rd2 {[%clk 00:04:16]} {[%emt 00:01:16]} Qe4+ {[%clk
00:03:27]} {[%emt 00:00:36]} 40. Kc3 {[%clk 00:03:26]} {[%emt 00:01:21]} Qe3+
{[%clk 00:00:41]} {[%emt 00:03:15]} 41. Kc2 {[%clk 00:02:53]} {[%emt 00:01:03]}
Qe4+ {[%clk 00:30:03]} {[%emt 00:01:08]} 42. Kc3 {[%clk 00:32:46]} {[%emt
00:00:37]} Qe5+ {[%clk 00:24:35]} {[%emt 00:05:58]} 43. Kd3 {[%clk 00:30:35]}
{[%emt 00:02:41]} d5 {[%clk 00:24:26]} {[%emt 00:00:39]} 44. Qxa7 {[%clk
00:19:54]} {[%emt 00:11:11]} c4+ {[%clk 00:23:52]} {[%emt 00:01:04]} 45. Kc2
{[%clk 00:20:15]} {[%emt 00:00:09]} Qe4+ {[%clk 00:24:02]} {[%emt 00:00:21]}
0-1

[Event "NJSK 2023 Jeugd B"]
[Site "Almelo, Netherlands"]
[Date "2023.05.03"]
[Round "4.7"]
[White "Ritzerveld, Noah"]
[Black "Knippenberg, Hidde"]
[Result "1/2-1/2"]
[TimeControl "90min/40moves + 30min + 30sec/move"]
[WhiteElo "1776"]
[BlackElo "1728"]

1. e4 {[%clk 01:30:57]} {[%emt 00:00:03]} c5 {[%clk 01:30:58]} {[%emt
00:00:02]} 2. Nf3 {[%clk 01:31:17]} {[%emt 00:00:10]} g6 {[%clk 01:31:24]}
{[%emt 00:00:05]} 3. d4 {[%clk 01:31:26]} {[%emt 00:00:20]} cxd4 {[%clk
01:31:49]} {[%emt 00:00:05]} 4. Nxd4 {[%clk 01:31:52]} {[%emt 00:00:04]} Nc6
{[%clk 01:32:15]} {[%emt 00:00:05]} 5. c4 {[%clk 01:32:15]} {[%emt 00:00:07]}
Nf6 {[%clk 01:32:30]} {[%emt 00:00:16]} 6. Nc3 {[%clk 01:32:35]} {[%emt
00:00:08]} d6 {[%clk 01:32:29]} {[%emt 00:00:31]} 7. Be2 {[%clk 01:32:30]}
{[%emt 00:00:35]} Nxd4 {[%clk 01:31:12]} {[%emt 00:01:46]} 8. Qxd4 {[%clk
01:32:47]} {[%emt 00:00:13]} Bg7 {[%clk 01:31:39]} {[%emt 00:00:04]} 9. Be3
{[%clk 01:30:33]} {[%emt 00:02:44]} O-O {[%clk 01:31:41]} {[%emt 00:00:28]} 10.
Qd2 {[%clk 01:29:12]} {[%emt 00:01:50]} Be6 {[%clk 01:31:00]} {[%emt 00:01:12]}
11. O-O {[%clk 01:27:37]} {[%emt 00:02:05]} Rc8 {[%clk 01:26:18]} {[%emt
00:05:13]} 12. b3 {[%clk 01:25:10]} {[%emt 00:02:56]} b6 {[%clk 01:19:15]}
{[%emt 00:07:32]} 13. Rac1 {[%clk 01:23:04]} {[%emt 00:02:36]} a5 {[%clk
01:19:19]} {[%emt 00:00:27]} 14. f4 {[%clk 01:10:04]} {[%emt 00:13:29]} Rb8
{[%clk 01:17:17]} {[%emt 00:02:33]} 15. Qe1 {[%clk 00:43:51]} {[%emt 00:26:43]}
Qc8 {[%clk 01:08:39]} {[%emt 00:09:08]} 16. Qf2 {[%clk 00:40:46]} {[%emt
00:03:35]} Qb7 {[%clk 01:03:39]} {[%emt 00:05:30]} 17. Bf3 {[%clk 00:40:31]}
{[%emt 00:00:45]} Ng4 {[%clk 01:04:03]} {[%emt 00:00:05]} 18. Bxg4 {[%clk
00:40:34]} {[%emt 00:00:27]} Bxg4 {[%clk 01:04:29]} {[%emt 00:00:04]} 19. Nd5
{[%clk 00:26:18]} {[%emt 00:14:48]} Be6 {[%clk 00:59:41]} {[%emt 00:05:17]} 20.
Rfd1 {[%clk 00:10:34]} {[%emt 00:16:14]} Bxd5 {[%clk 00:59:40]} {[%emt
00:00:32]} 21. Rxd5 {[%clk 00:10:38]} {[%emt 00:00:25]} Qc6 {[%clk 00:54:44]}
{[%emt 00:05:26]} 22. Qd2 {[%clk 00:09:13]} {[%emt 00:01:55]} Rfc8 {[%clk
00:54:00]} {[%emt 00:01:13]} 23. h3 {[%clk 00:08:51]} {[%emt 00:00:52]} a4
{[%clk 00:52:26]} {[%emt 00:02:04]} 24. e5 {[%clk 00:05:05]} {[%emt 00:04:16]}
dxe5 {[%clk 00:52:43]} {[%emt 00:00:13]} 25. fxe5 {[%clk 00:05:27]} {[%emt
00:00:09]} axb3 {[%clk 00:44:05]} {[%emt 00:09:08]} 26. axb3 {[%clk 00:05:50]}
{[%emt 00:00:07]} b5 {[%clk 00:43:50]} {[%emt 00:00:44]} 27. cxb5 {[%clk
00:05:21]} {[%emt 00:00:59]} Qxc1+ {[%clk 00:44:16]} {[%emt 00:00:04]} 28. Qxc1
{[%clk 00:05:27]} {[%emt 00:00:25]} Rxc1+ {[%clk 00:44:44]} {[%emt 00:00:02]}
29. Bxc1 {[%clk 00:05:13]} {[%emt 00:00:44]} e6 {[%clk 00:45:13]} 30. Rd7
{[%clk 00:01:33]} {[%emt 00:04:10]} Bxe5 {[%clk 00:45:24]} {[%emt 00:00:18]} 31.
Bh6 {[%clk 00:01:49]} {[%emt 00:00:14]} Bg7 {[%clk 00:45:38]} {[%emt 00:00:16]}
32. Be3 {[%clk 00:01:56]} {[%emt 00:00:24]} Be5 {[%clk 00:42:17]} {[%emt
00:03:50]} 33. b6 {[%clk 00:02:15]} {[%emt 00:00:13]} h5 {[%clk 00:41:41]}
{[%emt 00:01:04]} 34. b7 {[%clk 00:02:15]} {[%emt 00:00:30]} Re8 {[%clk
00:40:08]} {[%emt 00:02:02]} 35. Ba7 {[%clk 00:02:04]} {[%emt 00:00:42]} Kg7
{[%clk 00:40:12]} {[%emt 00:00:25]} 36. b4 {[%clk 00:02:21]} {[%emt 00:00:15]}
Bb8 {[%clk 00:40:29]} {[%emt 00:00:12]} 37. Be3 {[%clk 00:01:53]} {[%emt
00:00:59]} e5 {[%clk 00:38:57]} {[%emt 00:02:02]} 38. b5 {[%clk 00:02:13]}
{[%emt 00:00:10]} e4 {[%clk 00:37:44]} {[%emt 00:01:43]} 39. b6 {[%clk
00:02:34]} {[%emt 00:00:08]} Be5 {[%clk 00:38:05]} {[%emt 00:00:09]} 40. Rc7
{[%clk 00:02:27]} {[%emt 00:00:38]} Rb8 {[%clk 00:38:30]} {[%emt 00:00:05]} 41.
Kf1 {[%clk 00:01:36]} {[%emt 00:01:20]} Kf6 {[%clk 00:35:27]} {[%emt 00:03:34]}
42. Ke2 {[%clk 00:01:34]} {[%emt 00:00:31]} Ke6 {[%clk 00:35:54]} {[%emt
00:00:03]} 43. Kf2 {[%clk 00:27:44]} {[%emt 00:04:20]} f6 {[%clk 01:03:23]}
{[%emt 00:03:01]} 44. h4 {[%clk 00:25:29]} {[%emt 00:02:45]} Kf5 {[%clk
00:43:13]} {[%emt 00:20:40]} 45. Rg7 {[%clk 00:14:40]} {[%emt 00:11:19]} Bd6
{[%clk 00:39:06]} {[%emt 00:04:38]} 46. g3 {[%clk 00:12:08]} {[%emt 00:03:02]}
Be5 {[%clk 00:38:55]} {[%emt 00:00:41]} 47. Bc5 {[%clk 00:10:59]} {[%emt
00:01:39]} Rd8 {[%clk 00:35:14]} {[%emt 00:04:11]} 48. Rc7 {[%clk 00:09:13]}
{[%emt 00:02:15]} Rb8 {[%clk 00:35:02]} {[%emt 00:00:43]} 49. Kg2 {[%clk
00:07:33]} {[%emt 00:02:10]} g5 {[%clk 00:23:55]} {[%emt 00:11:37]} 50. hxg5
{[%clk 00:03:30]} {[%emt 00:04:33]} Kxg5 {[%clk 00:23:15]} {[%emt 00:01:10]} 51.
Be3+ {[%clk 00:03:21]} {[%emt 00:00:39]} Kg6 {[%clk 00:23:10]} {[%emt
00:00:35]} 52. Kh3 {[%clk 00:02:25]} {[%emt 00:01:25]} Kf5 {[%clk 00:22:48]}
{[%emt 00:00:52]} 53. Bf2 {[%clk 00:02:15]} {[%emt 00:00:41]} Kg5 {[%clk
00:22:04]} {[%emt 00:01:14]} 54. Be3+ {[%clk 00:02:02]} {[%emt 00:00:43]} Kg6
{[%clk 00:19:57]} {[%emt 00:01:55]} 55. Kg2 {[%clk 00:01:19]} {[%emt 00:01:55]}
1/2-1/2

[Event "NJSK 2023 Jeugd B"]
[Site "Almelo, Netherlands"]
[Date "2023.05.03"]
[Round "4.8"]
[White "Veraart, Jan"]
[Black "Guillaumond, Matthieu"]
[Result "0-1"]
[TimeControl "90min/40moves + 30min + 30sec/move"]
[WhiteElo "1560"]
[BlackElo "2010"]

1. e4 {[%clk 01:30:58]} {[%emt 00:00:01]} c5 {[%clk 01:30:57]} {[%emt
00:00:04]} 2. Nc3 {[%clk 01:31:24]} {[%emt 00:00:04]} e6 {[%clk 01:31:22]}
{[%emt 00:00:05]} 3. Nf3 {[%clk 01:31:51]} {[%emt 00:00:03]} Nc6 {[%clk
01:31:44]} {[%emt 00:00:08]} 4. Bb5 {[%clk 01:32:16]} {[%emt 00:00:04]} a6
{[%clk 01:31:04]} {[%emt 00:01:10]} 5. Bxc6 {[%clk 01:32:06]} {[%emt 00:00:40]}
bxc6 {[%clk 01:31:26]} {[%emt 00:00:08]} 6. e5 {[%clk 01:28:54]} {[%emt
00:03:42]} Ne7 {[%clk 01:30:40]} {[%emt 00:01:16]} 7. Ne4 {[%clk 01:18:31]}
{[%emt 00:10:52]} Nd5 {[%clk 01:26:43]} {[%emt 00:04:28]} 8. c4 {[%clk
01:16:34]} {[%emt 00:02:28]} Nf4 {[%clk 01:13:54]} {[%emt 00:13:18]} 9. d4
{[%clk 01:04:05]} {[%emt 00:12:59]} Ng6 {[%clk 01:04:10]} {[%emt 00:10:14]} 10.
dxc5 {[%clk 00:58:38]} {[%emt 00:05:57]} Bxc5 {[%clk 01:02:22]} {[%emt
00:02:19]} 11. O-O {[%clk 00:57:08]} {[%emt 00:01:59]} Be7 {[%clk 01:00:03]}
{[%emt 00:02:49]} 12. b3 {[%clk 00:48:50]} {[%emt 00:08:49]} O-O {[%clk
00:58:39]} {[%emt 00:01:53]} 13. Bb2 {[%clk 00:42:25]} {[%emt 00:06:55]} f5
{[%clk 00:51:39]} {[%emt 00:07:30]} 14. exf6 {[%clk 00:41:01]} {[%emt
00:01:54]} gxf6 {[%clk 00:51:41]} {[%emt 00:00:28]} 15. c5 {[%clk 00:33:48]}
{[%emt 00:07:42]} Kf7 {[%clk 00:44:15]} {[%emt 00:07:57]} 16. Nfd2 {[%clk
00:28:55]} {[%emt 00:05:21]} f5 {[%clk 00:38:46]} {[%emt 00:06:00]} 17. Nd6+
{[%clk 00:20:57]} {[%emt 00:08:28]} Bxd6 {[%clk 00:38:32]} {[%emt 00:00:45]} 18.
cxd6 {[%clk 00:21:21]} {[%emt 00:00:06]} Qh4 {[%clk 00:27:45]} {[%emt
00:11:17]} 19. Nf3 {[%clk 00:17:13]} {[%emt 00:04:38]} Qh6 {[%clk 00:27:55]}
{[%emt 00:00:19]} 20. Ne5+ {[%clk 00:09:39]} {[%emt 00:08:04]} Nxe5 {[%clk
00:27:23]} {[%emt 00:01:04]} 21. Bxe5 {[%clk 00:10:03]} {[%emt 00:00:05]} Rg8
{[%clk 00:27:12]} {[%emt 00:00:41]} 22. Qf3 {[%clk 00:10:26]} {[%emt 00:00:06]}
Bb7 {[%clk 00:26:35]} {[%emt 00:01:08]} 23. Rac1 {[%clk 00:09:43]} {[%emt
00:01:13]} Rab8 {[%clk 00:25:57]} {[%emt 00:01:08]} 24. Rc5 {[%clk 00:09:59]}
{[%emt 00:00:14]} Ba8 {[%clk 00:22:11]} {[%emt 00:04:17]} 25. a4 {[%clk
00:07:13]} {[%emt 00:03:15]} Qg6 {[%clk 00:21:03]} {[%emt 00:01:38]} 26. Bg3
{[%clk 00:05:14]} {[%emt 00:02:29]} h5 {[%clk 00:20:14]} {[%emt 00:01:19]} 27.
h4 {[%clk 00:05:43]} {[%emt 00:00:01]} Rb4 {[%clk 00:20:13]} {[%emt 00:00:31]}
28. Re1 {[%clk 00:05:35]} {[%emt 00:00:37]} Rg4 {[%clk 00:14:04]} {[%emt
00:06:40]} 29. Ree5 {[%clk 00:05:32]} {[%emt 00:00:32]} Rd4 {[%clk 00:11:42]}
{[%emt 00:02:52]} 30. Re1 {[%clk 00:00:41]} {[%emt 00:05:22]} Rd5 {[%clk
00:10:12]} {[%emt 00:02:00]} 31. Rec1 {[%clk 00:00:32]} {[%emt 00:00:39]} Rd4
{[%clk 00:09:08]} {[%emt 00:01:34]} 32. Re1 {[%clk 00:00:34]} {[%emt 00:00:28]}
Qg4 {[%emt 00:03:57]} 33. Qxg4 {[%clk 00:00:46]} {[%emt 00:00:17]} Rdxg4 {[%clk
00:06:11]} {[%emt 00:00:01]} 34. Kh2 {[%clk 00:00:52]} {[%emt 00:00:23]} f4
{[%clk 00:05:58]} {[%emt 00:00:44]} 35. Bxf4 {[%clk 00:00:31]} {[%emt
00:00:51]} Rxf4 {[%clk 00:06:19]} {[%emt 00:00:09]} 36. Rxh5 {[%clk 00:00:57]}
{[%emt 00:00:03]} Rxf2 {[%clk 00:06:21]} {[%emt 00:00:31]} 37. Rg1 {[%clk
00:01:26]} c5 {[%clk 00:04:05]} {[%emt 00:02:45]} 38. Rh7+ {[%clk 00:01:54]}
{[%emt 00:00:02]} Ke8 {[%clk 00:04:01]} {[%emt 00:00:33]} 39. h5 {[%clk
00:02:12]} {[%emt 00:00:13]} Bxg2 {[%clk 00:03:59]} {[%emt 00:00:32]} 40. Re7+
{[%clk 00:01:06]} {[%emt 00:01:36]} Kd8 {[%clk 00:03:40]} {[%emt 00:00:50]} 41.
Rc1 {[%clk 00:00:33]} {[%emt 00:01:01]} Be4+ {[%clk 00:03:21]} {[%emt
00:00:49]} 42. Kh3 {[%clk 00:01:02]} {[%emt 00:00:02]} Bf5+ {[%clk 00:03:31]}
{[%emt 00:00:20]} 0-1